[Event "73rd Greek Championship 2024"]
[Site "Thessaloniki"]
[Date "2024.12.04"]
[Round "3.5"]
[White "Alexiadis, Hristos"]
[Black "Kolytas, Spiridon"]
[Result "1-0"]
[Annotator "TA"]
[ECO "A05"]
[WhiteElo "2341"]
[BlackElo "1946"]
[PlyCount "87"]
[EventDate "2024.12.02"]
[EventType "tourn"]
[EventCountry "GRE"]
[SourceTitle "playchess.com"]
[Source "ChessBase"]
[SourceQuality "1"]
[TimeControl "40/5400+30:1800+30"]

{[%evp 10,87,7,4,40,22,27,14,16,14,21,22,43,40,20,7,49,54,163,79,75,75,81,87,107,77,75,71,76,77,85,79,102,91,97,43,91,91,117,81,70,74,164,100,93,106,159,144,139,161,162,147,173,168,164,170,174,65,93,-16,482,456,491,396,406,402,409,409,402,407,400,384,557,564,568,555,554,545,516,526]} 1. Nf3 {[%emt 0:04:19]} Nf6 {[%emt 0:00:09]} 2. g3 {[%emt 0:00:25]} b5 {[%emt 0:00:14]} 3. Bg2 {[%emt 0:00:41]} Bb7 {[%emt 0:00:05]} 4. O-O {[%emt 0:00:09]} e6 {[%emt 0:00:06]} 5. b3 {[%emt 0:00:05]} Be7 {[%emt 0:02:45]} 6. c4 {[%emt 0:01:53]} a6 {[%emt 0:02:40]} 7. Re1 {[%emt 0:06:07]} d6 {[%emt 0:05:52]} 8. Nc3 {[%emt 0:00:37]} b4 {[%emt 0:00:13]} 9. Na4 {[%emt 0:00:25]} Nbd7 {[%emt 0:02:08]} (9... O-O $5) 10. d4 {[%emt 0:04:15]} Be4 {[%emt 0:11:37]} 11. Bb2 {[%emt 0:03:55]} O-O {[%emt 0:00:52]} 12. Bh3 {[%emt 0:04:04]} d5 {[%emt 0:06:24]} 13. cxd5 {[%emt 0:02:14]} exd5 {[%emt 0:01:18]} (13... Bxd5 $14 14. Rc1 Ne4) 14. Rc1 {[%emt 0:00:54]} (14. Ne5 $18 {is more deadly.}) 14... Bxf3 $16 {[%emt 0:12:17]} 15. exf3 {[%emt 0:00:09]} Re8 {[%emt 0:00:19]} 16. Qc2 {[%emt 0:08:22]} Bd6 {[%emt 0:02:40]} 17. Qc6 {[%emt 0:00:35]} Nf8 {[%emt 0:06:23]} 18. Nc5 {[%emt 0:09:21]} Rxe1+ {[%emt 0:05:15]} 19. Rxe1 {[%emt 0:00:38]} Ra7 {[%emt 0:00:32]} 20. Bc1 {[%emt 0:18:59] White is much more active.} Qa8 {[%emt 0:07:45]} 21. Qa4 {[%emt 0:03:54]} a5 {[%emt 0:01:17]} 22. Bg5 {[%emt 0:09:32]} ({White should try} 22. Nd7 $16 {Threatens to win with Nxf6+.} Qd8 23. Ne5) 22... Bxc5 {[%emt 0:01:09]} (22... c6 $14 {should be considered.}) 23. dxc5 {[%emt 0:00:09]} Ra6 {[%emt 0:00:55]} 24. Bf1 {[%emt 0:10:35]} Re6 {[%emt 0:01:56]} 25. Rc1 $36 {[%emt 0:02:16][%mdl 2048] White has strong initiative.} c6 {[%emt 0:01:59] [#]} (25... d4 $16) 26. Bd2 {[%emt 0:00:19]} (26. a3 $1 $18 {[%cal Ra3b4]} Re8 (26... bxa3 $2 27. b4 $18) 27. Bxf6 (27. axb4 axb4 28. Qxb4 Rb8 $18) 27... gxf6 28. axb4 axb4 29. Qxb4) 26... Re8 {[%emt 0:03:09]} 27. a3 {[%emt 0:01:52]} Rb8 {[%emt 0:06:08]} ({Better is} 27... Ne6) 28. Bf4 {[%emt 0:00:50]} (28. axb4 $6 axb4 29. Qxa8 Rxa8 $11) 28... Rd8 {[%emt 0:03:11]} 29. axb4 {[%emt 0:00:27]} axb4 {[%emt 0:00:06]} 30. Qxb4 {[%emt 0:00:04]} Ne6 {[%emt 0:00:08]} 31. Be5 {[%emt 0:00:48]} Qa2 {[%emt 0:05:49]} 32. Bd3 {[%emt 0:03:10]} d4 {[%emt 0:00:13]} 33. Bc4 {[%emt 0:03:17]} (33. Bxf6 $18 gxf6 34. Kg2) 33... Nd5 {[%emt 0:01:59]} 34. Qe1 {[%emt 0:00:35]} (34. Qa4 $16 Qd2 35. Rf1) 34... Nxc5 $2 {[%emt 0:02:43][%mdl 8192]} (34... Ng5 $11 35. Bxd5 (35. Bxd4 $2 {loses.} Nxf3+ 36. Kg2 Nxe1+ $19) (35. Qe2 Nc3 $11) 35... Rxd5) 35. b4 $18 {[%emt 0:00:10]} (35. Bxd4 Ne6 $18) 35... Nb3 {[%emt 0:02:44]} 36. Rb1 {[%emt 0:00:20]} Nd2 {[%emt 0:01:16]} 37. Bxa2 {[%emt 0:00:20] This pair of bishops is nice.} Nxf3+ {[%emt 0:00:04]} 38. Kf1 {[%emt 0:00:16]} Nxe1 {[%emt 0:00:04]} 39. Rxe1 {[%emt 0:00:36]} ({Weaker is} 39. Kxe1 Re8 $16) 39... Nxb4 {[%emt 0:00:07]} 40. Bc4 {[%emt 0:00:00]} Kf8 {[%emt 0:00:00]} (40... h5 $142 41. Bc7 Rd7) 41. Bc7 {[%emt 0:03:35]} Rd7 {[%emt 0:05:12]} 42. Bb6 {[%emt 0:00:06] White threatens Bc5+ and mate.} Nd5 {[%emt 0:02:04]} 43. Bc5+ {[%emt 0:00:07]} Ne7 {[%emt 0:00:10]} 44. Ke2 {[%emt 0:00:16]} 1-0

[Event "73rd Greek Championship 2024"]
[Site "Thessaloniki"]
[Date "2024.12.05"]
[Round "4.1"]
[White "Patrelakis, Evaggelos"]
[Black "Kolytas, Spiridon"]
[Result "1-0"]
[Annotator "TA"]
[ECO "B12"]
[WhiteElo "2437"]
[BlackElo "1946"]
[PlyCount "103"]
[EventDate "2024.12.02"]
[EventType "tourn"]
[EventCountry "GRE"]
[SourceTitle "playchess.com"]
[Source "ChessBase"]
[SourceQuality "1"]
[TimeControl "40/5400+30:1800+30"]

{[%evp 9,103,0,11,0,0,-6,0,0,0,0,0,0,-16,0,0,0,0,0,0,0,16,-15,0,0,0,-8,16,0,10,12,6,14,27,35,14,3,25,0,98,93,77,81,165,165,210,212,215,208,219,210,194,150,254,226,264,264,268,271,269,248,343,315,423,391,414,354,353,301,418,415,431,423,423,427,436,429,575,573,609,603,614,609,604,602,695,679,1667,1514,1848,1834,1273,1293,29982,29983,29983,29984]} 1. e4 {[%emt 0:01:01]} c6 {[%emt 0:00:04]} 2. d4 {[%emt 0:00:19]} d5 {[%emt 0:00:05]} 3. e5 {[%emt 0:00:10]} c5 {[%emt 0:00:07]} 4. Nf3 {[%emt 0:01:22]} cxd4 {[%emt 0:00:08]} 5. Qxd4 {[%emt 0:00:23]} Nc6 {[%emt 0:00:30][%cal Bb8c6,Bc6b4,Bb4d3][%mdl 32]} 6. Qf4 {[%emt 0:00:16]} e6 {[%emt 0:00:12]} 7. Nc3 {[%emt 0:02:37]} Nb4 {[%emt 0:00:33]} 8. Bd3 {[%emt 0:00:17]} Nxd3+ {[%emt 0:01:45]} 9. cxd3 {[%emt 0:01:50]} Ne7 {[%emt 0:01:02]} 10. h4 {[%emt 0:05:30]} (10. Ng5 $5 Nf5 $8 11. g4 $11) 10... h5 {[%emt 0:10:01]} 11. Bd2 {[%emt 0:11:43]} Ng6 {[%emt 0:23:49]} 12. Qg3 {[%emt 0:00:15]} Bd7 {[%emt 0:03:14]} 13. O-O {[%emt 0:03:33]} Be7 {[%emt 0:02:23][%cal Re7h4]} 14. Bg5 {[%emt 0:01:50]} Rc8 {[%emt 0:03:29]} 15. Rac1 {[%emt 0:04:10]} Bxg5 {[%emt 0:03:32]} 16. Nxg5 {[%emt 0:00:10]} Qb6 {[%emt 0:01:29]} 17. b3 {[%emt 0:17:30]} Qb4 {[%emt 0:17:18] [#]} (17... O-O {simplifies} 18. Qf3 Qd4 19. Qxh5 Qxh4 20. Qxh4 Nxh4 21. g3 Ng6) 18. d4 $1 {[%emt 0:03:14]} Qxd4 {[%emt 0:04:51] [#]} (18... O-O 19. Qd3) 19. Nb5 $1 {[%emt 0:01:06]} Qxe5 {[%emt 0:06:34]} 20. Nd6+ {[%emt 0:07:40] Excellent horsemanship.} Ke7 {[%emt 0:00:05]} 21. Nxc8+ {[%emt 0:00:18]} Rxc8 {[%emt 0:00:15]} 22. Rxc8 {[%emt 0:05:28]} Bxc8 {[%emt 0:00:09]} 23. Rc1 {[%emt 0:06:52]} Nf4 {[%emt 0:06:35]} 24. Kh2 $36 {[%emt 0:02:05][%mdl 3072] White has strong compensation. White has strong initiative.} Bd7 {[%emt 0:00:45]} 25. Nf3 {[%emt 0:01:46]} Qf6 {[%emt 0:02:00]} (25... Qd6 $16) 26. Rc7 $18 {[%emt 0:01:01]} Ne2 {[%emt 0:04:49] [#]} 27. Qg5 $1 {[%emt 0:06:01]} Qxg5 {[%emt 0:00:54]} 28. hxg5 {[%emt 0:00:16][%mdl 4096] Endgame KRN-KBN} b6 {[%emt 0:04:22]} 29. Rxa7 {[%emt 0:02:17]} Kd6 {[%emt 0:00:05]} 30. Rb7 {[%emt 0:05:15][%cal Ba7b7,Bb7b8,Bb8g8,Bg8g7][%mdl 32]} Kc6 {[%emt 0:00:15]} (30... b5 $16 {keeps fighting.} 31. Ne5 Kxe5 32. Rxd7 b4) 31. Rb8 {[%emt 0:00:13]} f6 {[%emt 0:00:25] Wards off Ne5+} 32. Rg8 {[%emt 0:01:30]} fxg5 {[%emt 0:00:46]} 33. Rxg7 {[%emt 0:00:18]} Kd6 {[%emt 0:00:27] Against Ne5} 34. Rxg5 {[%emt 0:00:41]} (34. Nxg5 d4 35. Ne4+ Ke5) 34... d4 {[%emt 0:01:17][%cal Bd5d4,Bd4d3][%mdl 32]} 35. Rxh5 {[%emt 0:01:42]} d3 {[%emt 0:00:59]} 36. Nd2 {[%emt 0:02:47]} Bc6 {[%emt 0:00:18]} 37. Nc4+ {[%emt 0:02:16]} Ke7 {[%emt 0:00:30]} 38. Re5 {[%emt 0:00:45]} (38. Nxb6 $2 d2 39. Rh7+ Kd8 40. Rh8+ Be8 $19) 38... Bd5 {[%emt 0:00:21] Hoping for ...Bxc4.} 39. Nd2 {[%emt 0:01:32]} ({Not} 39. Nxb6 Bxb3 40. axb3 d2 41. Nd5+ (41. Rxe2 d1=Q $15) 41... Kd6 $18) 39... Kf6 {[%emt 0:01:06]} 40. Re3 {[%emt 0:00:00]} Nc1 {[%emt 0:00:00]} 41. f3 {[%emt 0:03:35]} Kf5 {[%emt 0:01:17]} 42. Kg3 {[%emt 0:01:22]} b5 {[%emt 0:00:15]} 43. a3 {[%emt 0:02:51]} e5 {[%emt 0:01:39][%cal Be6e5,Be5e4][%mdl 32]} 44. Kf2 {[%emt 0:00:19]} Bc6 {[%emt 0:01:42]} 45. Re1 {[%emt 0:01:51]} Ne2 {[%emt 0:00:27]} 46. Ke3 {[%emt 0:00:35]} Nf4 {[%emt 0:00:26]} 47. Rc1 {[%emt 0:00:47]} Nxg2+ {[%emt 0:00:34]} 48. Kf2 {[%emt 0:00:37]} e4 {[%emt 0:00:28]} 49. Kxg2 {[%emt 0:07:59]} (49. Rxc6 $2 {is the wrong capture.} e3+ 50. Kxg2 exd2 $19) 49... e3 {[%emt 0:00:09]} 50. Nf1 {[%emt 0:00:05]} d2 {[%emt 0:05:31]} 51. Nxe3+ {[%emt 0:00:32]} Kf4 {[%emt 0:00:11]} 52. Rxc6 {[%emt 0:00:33]} 1-0

[Event "73rd Greek Championship 2024"]
[Site "Thessaloniki"]
[Date "2024.12.05"]
[Round "4.2"]
[White "Hadzimanolis, Antonios"]
[Black "Alexiadis, Hristos"]
[Result "1/2-1/2"]
[Annotator "TA"]
[ECO "E63"]
[WhiteElo "2159"]
[BlackElo "2341"]
[PlyCount "93"]
[EventDate "2024.12.02"]
[EventType "tourn"]
[EventCountry "GRE"]
[SourceTitle "playchess.com"]
[Source "ChessBase"]
[SourceQuality "1"]
[TimeControl "40/5400+30:1800+30"]

{[%evp 22,93,8,13,21,0,12,6,0,0,13,0,0,0,0,-4,0,-13,-6,0,-6,-71,-22,-156,-157,-141,-154,-137,-51,-57,-53,-57,-53,-99,-107,-82,-104,-85,-87,-104,-90,-92,-89,-86,-21,-22,-29,-27,0,0,0,0,76,0,38,-22,-28,-25,-12,-9,-10,-10,-11,-11,-11,-11,-10,-9,-9,-10,-9,-14,-11,-15]} 1. Nf3 {[%emt 0:02:15]} Nf6 {[%emt 0:01:26]} 2. g3 {[%emt 0:00:08]} g6 {[%emt 0:00:04]} 3. Bg2 {[%emt 0:00:07]} Bg7 {[%emt 0:00:04]} 4. O-O {[%emt 0:00:11]} O-O {[%emt 0:00:03]} 5. c4 {[%emt 0:00:26]} d6 {[%emt 0:00:04]} 6. Nc3 {[%emt 0:00:36]} a6 {[%emt 0:03:50]} 7. d4 {[%emt 0:03:01][%cal Bd2d4,Bd4d5][%mdl 32]} Nc6 {[%emt 0:00:07]} 8. b3 {[%emt 0:14:02]} Rb8 {[%emt 0:00:05]} 9. Bb2 {[%emt 0:00:15]} b5 {[%emt 0:00:06]} 10. cxb5 {[%emt 0:01:25]} axb5 {[%emt 0:00:05]} 11. Rc1 {[%emt 0:00:12]} Bd7 {[%emt 0:00:30]} 12. d5 {[%emt 0:02:23]} Na5 {[%emt 0:02:33]} 13. Nd4 {[%emt 0:00:52]} b4 {[%emt 0:00:05]} 14. Na4 {[%emt 0:06:01]} e5 {[%emt 0:00:06]} 15. dxe6 {[%emt 0:12:17]} fxe6 {[%emt 0:00:04]} 16. Nc6 {[%emt 0:00:15] Against c5} Nxc6 {[%emt 0:00:05]} 17. Bxc6 {[%emt 0:00:06]} Bxc6 {[%emt 0:10:57]} 18. Rxc6 {[%emt 0:00:03]} e5 {[%emt 0:00:11]} 19. Qc2 {[%emt 0:00:59]} Rf7 {[%emt 0:05:08]} 20. Kg2 {[%emt 0:11:54]} Qd7 {[%emt 0:15:51]} 21. Bc1 {[%emt 0:11:11]} (21. Qc4 $11 {remains equal.}) 21... Rbf8 {[%emt 0:08:56]} ({Black should try} 21... e4 $17) 22. Bg5 {[%emt 0:03:27]} (22. e4 $11) 22... Ng4 $1 $17 {[%emt 0:03:40]} 23. f3 {[%emt 0:01:36] [#]} e4 $1 {[%emt 0:00:26][%mdl 512]} 24. Rc4 {[%emt 0:16:33] [#]} (24. Qxe4 Re8 25. Qc2 (25. Qxg4 $2 Rxe2+ 26. Kh3 Qxc6 $19) 25... Qxc6 (25... Rxe2+ 26. Qxe2 Qxc6 27. Rc1 $11) 26. Qxc6 Rxe2+ $19) 24... Qf5 {[%emt 0:23:46]} (24... exf3+ 25. exf3 Ne5 26. Rf4 $15) (24... d5 $1 $17 25. Rxb4 Qf5) 25. Qxe4 $15 {[%emt 0:00:39]} (25. fxg4 $2 Qxf1#) 25... Ne5 $1 {[%emt 0:01:42][%cal Oe5c4]} 26. Qxf5 {[%emt 0:04:42]} Rxf5 {[%emt 0:00:05]} 27. Rxc7 {[%emt 0:00:03]} (27. Rcc1 $15 Rxg5 28. f4) 27... Rxg5 $17 {[%emt 0:00:06]} 28. Rd1 {[%emt 0:00:29]} Nf7 {[%emt 0:02:12]} 29. Rb7 {[%emt 0:00:51] Wards off Rb5} Re5 {[%emt 0:05:59]} 30. e4 {[%emt 0:01:29]} Rc8 {[%emt 0:00:51]} 31. Rd2 {[%emt 0:00:48] Against Rc2} Bh6 {[%emt 0:06:49]} 32. Re2 {[%emt 0:01:30][%cal Of3f4]} Bc1 {[%emt 0:02:35]} (32... d5 $17 {Threatens to win with ...dxe4.} 33. Rxb4 (33. Nb6 $2 Rd8 $19) 33... Bg7) 33. Rxb4 {[%emt 0:01:33]} Ba3 {[%emt 0:00:29]} 34. Rb7 {[%emt 0:00:24]} Rc1 {[%emt 0:00:30]} 35. f4 $1 {[%emt 0:01:15]} Re8 {[%emt 0:00:28]} 36. Nb6 {[%emt 0:00:11]} Bc5 {[%emt 0:02:28]} (36... Nd8 $11 37. Rd7 Nc6) 37. Nd7 {[%emt 0:00:47]} (37. Nd5 $16 {Threatens to win with Nf6+.} Kf8 38. Rc7) 37... Kg7 {[%emt 0:03:26]} 38. e5 {[%emt 0:00:35]} ({Better is} 38. Nxc5 $14 Rxc5 39. Kf2) 38... dxe5 $11 {[%emt 0:01:18]} 39. Nxe5 {[%emt 0:00:03]} Re7 {[%emt 0:01:06]} 40. Rxe7 {[%emt 0:00:00]} Bxe7 {[%emt 0:00:00]} 41. Nxg6 {[%emt 0:04:01]} hxg6 {[%emt 0:02:31]} (41... Kxg6 42. Rxe7 Rc2+ 43. Kf3 Rxa2 44. Re2 $17) 42. Rxe7 {[%emt 0:00:05] KRN-KR} Rc2+ {[%emt 0:00:04]} 43. Kf3 {[%emt 0:00:16]} Rxa2 {[%emt 0:00:08]} 44. h4 {[%emt 0:00:13]} Kf6 {[%emt 0:02:46]} 45. Rb7 $1 {[%emt 0:00:14]} Nd6 {[%emt 0:01:55]} 46. Rb6 {[%emt 0:02:09]} Ke7 {[%emt 0:01:00]} 47. g4 {[%emt 0:00:29]} 1/2-1/2

[Event "73rd Greek Championship 2024"]
[Site "Thessaloniki"]
[Date "2024.12.05"]
[Round "4.3"]
[White "Kalogridis, Antonios"]
[Black "Tsaknakis, Zisis"]
[Result "1-0"]
[Annotator "TA"]
[ECO "E20"]
[WhiteElo "2333"]
[BlackElo "2259"]
[PlyCount "95"]
[EventDate "2024.12.02"]
[EventType "tourn"]
[EventCountry "GRE"]
[SourceTitle "playchess.com"]
[Source "ChessBase"]
[SourceQuality "1"]
[TimeControl "40/5400+30:1800+30"]

{[%evp 13,95,-9,0,8,-8,-19,6,0,0,0,0,-2,22,6,24,-55,-60,-99,-101,-68,23,32,32,35,25,28,16,16,132,112,111,116,244,244,247,245,464,468,476,426,458,470,540,525,716,732,729,672,688,513,529,521,506,383,378,336,345,353,353,356,980,352,364,360,429,429,412,390,1379,1019,1152,992,985,955,879,1561,1665,1649,1141,1140,5285,5281,2008,1950]} 1. d4 {[%emt 0:00:01]} Nf6 {[%emt 0:07:46]} 2. c4 {[%emt 0:00:03]} e6 {[%emt 0:00:06]} 3. Nc3 {[%emt 0:00:04]} Bb4 {[%emt 0:00:04]} 4. g3 {[%emt 0:00:07]} O-O {[%emt 0:00:21]} 5. Bg2 {[%emt 0:00:06]} d5 {[%emt 0:00:05]} 6. Nf3 {[%emt 0:00:15]} dxc4 {[%emt 0:00:41]} 7. O-O {[%emt 0:00:13]} Nc6 {[%emt 0:00:02]} 8. Qa4 {[%emt 0:00:18]} Nd5 {[%emt 0:01:02][%cal Bf6d5,Bd5b4,Bb4d3][%mdl 32]} 9. Qc2 {[%emt 0:00:38]} Be7 {[%emt 0:00:17]} 10. Rd1 {[%emt 0:01:40]} Rb8 {[%emt 0:01:23]} 11. e4 {[%emt 0:00:30]} Ndb4 {[%emt 0:03:52]} 12. Qe2 {[%emt 0:00:35]} Nd3 {[%emt 0:01:38]} 13. Be3 {[%emt 0:00:09] next b3 is good for White.} b5 {[%emt 0:07:23]} 14. d5 {[%emt 0:02:57]} (14. b3 $1 $11) 14... exd5 $15 {[%emt 0:03:28]} 15. Nxd5 {[%emt 0:01:42] [#]} Bg4 $1 {[%emt 0:09:55]} 16. Qc2 {[%emt 0:41:41][%cal Od1d3]} Bf6 {[%emt 0:06:47]} ({Black should play} 16... Ncb4 $15 17. Nxb4 Nxb4 (17... Bxb4 18. a3 $17)) 17. Rxd3 $1 $11 {[%emt 0:02:13]} Bxf3 $1 {[%emt 0:05:23]} 18. Bxf3 {[%emt 0:02:13]} Ne5 $1 {[%emt 0:01:28]} 19. Rdd1 {[%emt 0:00:19]} (19. Nxf6+ Qxf6 20. Rd5 Nxf3+ 21. Kg2 Ne5 22. Bxa7 Rbd8 23. Rxb5 Rfe8 $17 (23... Qf3+ 24. Kg1 $17)) 19... Nxf3+ {[%emt 0:00:27]} 20. Kg2 {[%emt 0:00:06]} Ne5 {[%emt 0:01:48]} (20... c6 $1 $11 {remains equal.}) 21. Bxa7 $16 {[%emt 0:00:44] White has more active pieces.} Ra8 {[%emt 0:08:39]} 22. Bc5 {[%emt 0:03:56][%cal Od5e7]} Nd3 {[%emt 0:04:50]} 23. Bxf8 $18 {[%emt 0:00:42]} Kxf8 {[%emt 0:00:29] [#]} 24. Nb4 $1 {[%emt 0:03:48][%cal Rb4d3][%mdl 512]} Nxb4 $2 {[%emt 0:06:31]} (24... Qd4 {keeps fighting.} 25. Nxd3 Qxe4+ 26. Kg1 cxd3 27. Rxd3 Bd4) (24... Qe8 25. Nxd3) 25. Rxd8+ {[%emt 0:00:06]} Rxd8 {[%emt 0:00:02]} 26. Qe2 {[%emt 0:00:09]} Nd3 {[%emt 0:00:24]} 27. Rb1 {[%emt 0:00:54]} c5 {[%emt 0:02:34]} 28. f4 {[%emt 0:02:18]} g5 {[%emt 0:06:39]} 29. e5 {[%emt 0:05:30]} Bg7 {[%emt 0:00:02]} 30. e6 {[%emt 0:00:41]} fxe6 {[%emt 0:06:15]} 31. Qxe6 {[%emt 0:00:07]} gxf4 {[%emt 0:01:31]} 32. Qb6 {[%emt 0:03:16]} Re8 {[%emt 0:02:44]} 33. Qxb5 {[%emt 0:00:14]} Re2+ {[%emt 0:00:55]} 34. Kh1 {[%emt 0:00:05] and gxf4 should not be overlooked} Nf2+ {[%emt 0:09:32]} 35. Kg1 {[%emt 0:00:04]} Nh3+ {[%emt 0:01:09]} 36. Kf1 {[%emt 0:00:05]} Rf2+ {[%emt 0:00:57]} 37. Ke1 {[%emt 0:00:04]} Bd4 {[%emt 0:00:15]} 38. Qb8+ {[%emt 0:01:37]} ({Don't do} 38. Qxc4 f3 39. b4 Rxh2 40. bxc5 Re2+ $18) 38... Kg7 {[%emt 0:00:50]} 39. Qc7+ {[%emt 0:00:08]} Kg6 {[%emt 0:00:44]} 40. Qc6+ {[%emt 0:00:00]} Bf6 $2 {[%emt 0:00:00]} (40... Kg5 41. Rd1 Rxh2) 41. Qe4+ {[%emt 0:02:28]} Kg5 {[%emt 0:04:43]} 42. gxf4+ {[%emt 0:02:05]} Rxf4 {[%emt 0:07:29]} 43. Qg2+ {[%emt 0:00:14]} Rg4 {[%emt 0:00:11]} 44. Qxh3 {[%emt 0:00:04]} Rg1+ {[%emt 0:00:06]} 45. Ke2 {[%emt 0:00:15]} Rxb1 {[%emt 0:00:11]} 46. Qe3+ {[%emt 0:00:03]} (46. Qxh7 Rxb2+ 47. Kf3 Bd4 $18) 46... Kh5 {[%emt 0:00:23]} 47. Qf3+ {[%emt 0:00:06]} Kg5 {[%emt 0:00:27] [#]} 48. h4+ $1 {[%emt 0:00:04][%mdl 512]} 1-0

[Event "73rd Greek Championship 2024"]
[Site "Thessaloniki"]
[Date "2024.12.05"]
[Round "4.4"]
[White "Stamatiou, Rodolfos"]
[Black "Alexakis, Dimitris"]
[Result "0-1"]
[Annotator "TA"]
[ECO "A46"]
[WhiteElo "2308"]
[BlackElo "2520"]
[PlyCount "48"]
[EventDate "2024.12.02"]
[EventType "tourn"]
[EventCountry "GRE"]
[SourceTitle "playchess.com"]
[Source "ChessBase"]
[SourceQuality "1"]
[TimeControl "40/5400+30:1800+30"]

{[%evp 9,48,-7,8,-14,1,-25,-18,-25,-11,-29,-29,-32,-21,-31,-38,-90,-12,-31,-33,-57,-42,-120,-125,-135,-134,-105,-92,-292,-259,-293,-266,-256,-266,-262,-265,-263,-255,-618,-595,-915,-907]} 1. d4 {[%emt 0:00:21]} Nf6 {[%emt 0:01:37]} 2. Nf3 {[%emt 0:00:47]} c5 {[%emt 0:00:14]} 3. dxc5 {[%emt 0:00:15]} e6 {[%emt 0:00:21]} 4. g3 {[%emt 0:00:39]} Bxc5 {[%emt 0:00:35]} 5. Bg2 {[%emt 0:00:07]} b5 {[%emt 0:10:38]} 6. O-O {[%emt 0:11:00]} Bb7 {[%emt 0:02:55]} 7. b3 {[%emt 0:02:35]} O-O {[%emt 0:07:57]} 8. Bb2 {[%emt 0:05:05] The position is equal.} d5 {[%emt 0:08:36]} 9. c4 {[%emt 0:05:05]} dxc4 {[%emt 0:03:31]} 10. bxc4 {[%emt 0:04:57]} b4 {[%emt 0:00:29]} 11. Qxd8 {[%emt 0:01:03]} Rxd8 {[%emt 0:00:07]} 12. Ne5 {[%emt 0:02:52]} (12. a3 $15) 12... Ne4 {[%emt 0:16:32]} (12... Bxg2 $17 13. Kxg2 Be7) 13. Nd3 {[%emt 0:01:56]} Nd7 {[%emt 0:02:35]} 14. Rc1 {[%emt 0:09:42]} Rab8 {[%emt 0:06:35]} 15. Kf1 {[%emt 0:08:30]} (15. Bxe4 $15 Bxe4 16. Nd2 Bxd3 17. exd3) 15... Be7 $1 $17 {[%emt 0:08:41] Black is more active.} 16. f3 {[%emt 0:16:02] [#]} Nec5 {[%emt 0:02:33][%cal Be4c5,Bc5a4,Ba4b2][%mdl 32]} 17. Nxb4 {[%emt 0:01:30]} Nb6 {[%emt 0:08:56] ...Nca4 would now be deadly.} 18. Rc2 $2 {[%emt 0:09:14] This costs White the game.} (18. Be5 $17 Rbc8 19. Na3) 18... Rd1+ $19 {[%emt 0:05:27]} 19. Kf2 {[%emt 0:00:06]} Nca4 {[%emt 0:00:30]} 20. Nd3 {[%emt 0:02:38] [#]} Rxd3 {[%emt 0:01:22][%mdl 512]} 21. exd3 {[%emt 0:00:59] Threatens to win with Nc3.} Nxb2 {[%emt 0:00:24]} 22. Ke2 {[%emt 0:02:25]} ({Much weaker is} 22. Rxb2 Bf6) 22... Bf6 {[%emt 0:00:29] aiming for ...N2a4. A strong pair of Bishops.} 23. c5 $2 {[%emt 0:02:26]} (23. Nc3 N2a4 24. Rac1 Nxc3+ (24... Bxc3 $2 25. Rxc3 Nxc3+ 26. Rxc3 $19) 25. Rxc3) 23... Nd5 {[%emt 0:01:51]} 24. Nd2 {[%emt 0:00:53]} Ba6 {[%emt 0:00:13] Weighted Error Value: White=0.79/Black=0.09 (flawless) .  Loses game:     	White=1     	---        Mistake:       	White=3     	Black=1      Inaccurate:     	White=2     	---        OK:         	White=3     	Black=10     Best:        	---       	Black=1      Strong:       	---       	Black=1      Brilliant:      	---       	Black=1} 0-1